[Event "Latvijas 2022. gada jauniešu čempionāta fināls"]
[Site "Riga, Latvia"]
[Date "2022.06.16"]
[Round "8.2"]
[White "Sokolovskis, Pavels"]
[Black "Krasilnikovs, Aleksandrs"]
[Result "1/2-1/2"]
[TimeControl "3600+30"]
[WhiteElo "1572"]
[BlackElo "1339"]

1. e4 {[%clk 01:00:56]} {[%emt 00:00:03]} c6 {[%clk 01:00:48]} {[%emt
00:00:12]} 2. d4 {[%clk 01:01:18]} {[%emt 00:00:08]} d5 {[%clk 01:01:13]}
{[%emt 00:00:05]} 3. f3 {[%clk 01:01:33]} {[%emt 00:00:15]} g6 {[%clk
01:00:49]} {[%emt 00:00:55]} 4. Be3 {[%clk 00:58:51]} {[%emt 00:03:12]} Bg7
{[%clk 00:59:34]} {[%emt 00:01:44]} 5. e5 {[%clk 00:56:38]} {[%emt 00:02:43]}
e6 {[%clk 00:58:53]} {[%emt 00:01:11]} 6. Bd3 {[%clk 00:54:14]} {[%emt
00:02:54]} Nd7 {[%clk 00:57:21]} {[%emt 00:02:02]} 7. Ne2 {[%clk 00:53:08]}
{[%emt 00:01:36]} Qc7 {[%clk 00:55:48]} {[%emt 00:02:03]} 8. O-O {[%clk
00:52:32]} {[%emt 00:01:06]} c5 {[%clk 00:54:25]} {[%emt 00:01:52]} 9. c3
{[%clk 00:52:10]} {[%emt 00:00:53]} b6 {[%clk 00:53:15]} {[%emt 00:01:40]} 10.
Qd2 {[%clk 00:51:10]} {[%emt 00:01:31]} h5 {[%clk 00:49:37]} {[%emt 00:04:07]}
11. f4 {[%clk 00:42:45]} {[%emt 00:08:55]} Ne7 {[%clk 00:48:47]} {[%emt
00:01:18]} 12. f5 {[%clk 00:32:12]} {[%emt 00:11:05]} gxf5 {[%clk 00:44:55]}
{[%emt 00:04:22]} 13. Nf4 {[%clk 00:28:00]} {[%emt 00:04:42]} Ng6 {[%clk
00:43:02]} {[%emt 00:02:22]} 14. Qf2 {[%clk 00:26:33]} {[%emt 00:01:57]} Nxf4
{[%clk 00:39:16]} {[%emt 00:04:17]} 15. Bxf4 {[%clk 00:26:54]} {[%emt
00:00:09]} Nf8 {[%clk 00:39:24]} {[%emt 00:00:22]} 16. Nd2 {[%clk 00:24:17]}
{[%emt 00:03:08]} Ng6 {[%clk 00:39:38]} {[%emt 00:00:15]} 17. Bg5 {[%clk
00:20:27]} {[%emt 00:04:21]} a5 {[%clk 00:36:57]} {[%emt 00:03:11]} 18. Nf3
{[%clk 00:18:35]} {[%emt 00:02:21]} Ba6 {[%clk 00:34:26]} {[%emt 00:02:59]} 19.
Bxa6 {[%clk 00:18:07]} {[%emt 00:01:00]} Rxa6 {[%clk 00:34:46]} {[%emt
00:00:10]} 20. Nh4 {[%clk 00:13:41]} {[%emt 00:04:56]} c4 {[%clk 00:30:12]}
{[%emt 00:05:04]} 21. Nxg6 {[%clk 00:11:24]} {[%emt 00:02:47]} fxg6 {[%clk
00:30:26]} {[%emt 00:00:16]} 22. b3 {[%clk 00:11:09]} {[%emt 00:00:44]} b5
{[%clk 00:30:19]} {[%emt 00:00:37]} 23. Qe2 {[%clk 00:09:18]} {[%emt 00:02:23]}
a4 {[%clk 00:27:58]} {[%emt 00:02:50]} 24. bxc4 {[%clk 00:07:59]} {[%emt
00:01:50]} bxc4 {[%clk 00:26:49]} {[%emt 00:01:39]} 25. Rab1 {[%clk 00:07:54]}
{[%emt 00:00:35]} Kd7 {[%clk 00:23:43]} {[%emt 00:03:34]} 26. Rb5 {[%clk
00:05:11]} {[%emt 00:03:14]} Rb8 {[%clk 00:23:34]} {[%emt 00:00:39]} 27. Rfb1
{[%clk 00:05:22]} {[%emt 00:00:19]} Rab6 {[%clk 00:23:24]} {[%emt 00:00:40]} 28.
Rxb6 {[%clk 00:04:46]} {[%emt 00:01:06]} Rxb6 {[%clk 00:23:52]} {[%emt
00:00:02]} 29. Qc2 {[%clk 00:05:01]} {[%emt 00:00:14]} Rxb1+ {[%clk 00:22:41]}
{[%emt 00:01:41]} 30. Qxb1 {[%clk 00:05:26]} {[%emt 00:00:06]} Bf8 {[%clk
00:22:39]} {[%emt 00:00:31]} 31. Qb5+ {[%clk 00:05:09]} {[%emt 00:00:46]} Qc6
{[%clk 00:16:15]} {[%emt 00:06:56]} 32. Qb8 {[%clk 00:05:19]} {[%emt 00:00:18]}
Qc8 {[%clk 00:15:01]} {[%emt 00:01:44]} 33. Qa7+ {[%clk 00:05:32]} {[%emt
00:00:17]} Qc7 {[%clk 00:14:40]} {[%emt 00:00:53]} 34. Qxa4+ {[%clk 00:05:57]}
{[%emt 00:00:06]} Qc6 {[%clk 00:14:54]} {[%emt 00:00:15]} 35. Qa7+ {[%clk
00:04:36]} {[%emt 00:01:51]} Qc7 {[%clk 00:15:14]} {[%emt 00:00:10]} 36. Qxc7+
{[%clk 00:04:03]} {[%emt 00:01:04]} Kxc7 {[%clk 00:15:40]} {[%emt 00:00:04]} 37.
Kf2 {[%clk 00:04:08]} {[%emt 00:00:24]} Ba3 {[%clk 00:13:47]} {[%emt 00:02:23]}
38. h3 {[%clk 00:04:09]} {[%emt 00:00:28]} Kc6 {[%clk 00:12:47]} {[%emt
00:01:31]} 39. g4 {[%clk 00:03:55]} {[%emt 00:00:44]} hxg4 {[%clk 00:12:42]}
{[%emt 00:00:36]} 40. hxg4 {[%clk 00:04:21]} {[%emt 00:00:04]} Kb5 {[%clk
00:12:56]} {[%emt 00:00:15]} 41. gxf5 {[%clk 00:03:22]} {[%emt 00:01:29]} gxf5
{[%clk 00:13:22]} {[%emt 00:00:04]} 42. Ke2 {[%clk 00:02:35]} {[%emt 00:01:17]}
Ka4 {[%clk 00:13:41]} {[%emt 00:00:11]} 43. Kd2 {[%clk 00:01:50]} {[%emt
00:01:15]} Bb2 {[%clk 00:13:46]} {[%emt 00:00:24]} 44. Be7 {[%clk 00:02:00]}
{[%emt 00:00:20]} Ba3 {[%clk 00:12:34]} {[%emt 00:01:43]} 45. Bd6 {[%clk
00:01:50]} {[%emt 00:00:40]} f4 {[%clk 00:12:39]} {[%emt 00:00:24]} 46. Ke2
{[%clk 00:02:04]} {[%emt 00:00:17]} Bb2 {[%clk 00:11:09]} {[%emt 00:02:00]} 47.
Bb4 {[%clk 00:02:06]} {[%emt 00:00:28]} Bc1 {[%emt 00:00:20]} 48. Be7 Ba3
{[%emt 00:00:01]} 49. Bd6 1/2-1/2

[Event "Latvijas 2022. gada jauniešu čempionāta fināls"]
[Site "Riga, Latvia"]
[Date "2022.06.16"]
[Round "8.3"]
[White "Bogdanovics, Kirills"]
[Black "Sterns, Tomass Kristians"]
[Result "1-0"]
[TimeControl "3600+30"]
[WhiteElo "1785"]
[BlackElo "1431"]

1. d4 {[%clk 01:00:54]} {[%emt 00:00:05]} Nf6 {[%clk 01:00:54]} {[%emt
00:00:06]} 2. c4 {[%clk 01:01:19]} {[%emt 00:00:06]} e6 {[%clk 01:01:18]}
{[%emt 00:00:06]} 3. Nc3 {[%clk 01:01:41]} {[%emt 00:00:08]} Bb4 {[%clk
01:01:38]} {[%emt 00:00:10]} 4. f3 {[%clk 01:01:43]} {[%emt 00:00:28]} O-O
{[%clk 01:01:29]} {[%emt 00:00:39]} 5. e4 {[%clk 01:01:45]} {[%emt 00:00:27]}
Bxc3+ {[%clk 01:01:25]} {[%emt 00:00:35]} 6. bxc3 {[%clk 01:02:07]} {[%emt
00:00:08]} d5 {[%clk 01:01:37]} {[%emt 00:00:18]} 7. e5 {[%clk 00:57:05]}
{[%emt 00:05:32]} Nfd7 {[%clk 01:00:45]} {[%emt 00:01:22]} 8. cxd5 {[%clk
00:52:50]} {[%emt 00:04:45]} exd5 {[%clk 01:00:40]} {[%emt 00:00:35]} 9. f4
{[%clk 00:52:50]} {[%emt 00:00:30]} f5 {[%clk 00:59:18]} {[%emt 00:01:50]} 10.
Nf3 {[%clk 00:51:21]} {[%emt 00:02:00]} c6 {[%clk 00:54:35]} {[%emt 00:05:13]}
11. Bd3 {[%clk 00:48:36]} {[%emt 00:03:15]} Nb6 {[%clk 00:53:20]} {[%emt
00:01:46]} 12. Ba3 {[%clk 00:44:51]} {[%emt 00:04:15]} Re8 {[%clk 00:52:57]}
{[%emt 00:00:52]} 13. Qc2 {[%clk 00:45:02]} {[%emt 00:00:19]} g6 {[%clk
00:52:07]} {[%emt 00:01:21]} 14. h4 {[%clk 00:44:44]} {[%emt 00:00:48]} Nc4
{[%clk 00:48:46]} {[%emt 00:03:50]} 15. Bxc4 {[%clk 00:44:46]} {[%emt
00:00:28]} dxc4 {[%clk 00:49:09]} {[%emt 00:00:07]} 16. h5 {[%clk 00:45:05]}
{[%emt 00:00:12]} Kg7 {[%clk 00:47:11]} {[%emt 00:02:27]} 17. hxg6 {[%clk
00:41:23]} {[%emt 00:04:13]} hxg6 {[%clk 00:46:43]} {[%emt 00:00:58]} 18. Ng5
{[%clk 00:41:42]} {[%emt 00:00:09]} Rh8 {[%clk 00:45:27]} {[%emt 00:01:47]} 19.
O-O-O {[%clk 00:41:20]} {[%emt 00:00:52]} Na6 {[%clk 00:40:10]} {[%emt
00:05:48]} 20. e6 {[%clk 00:37:17]} {[%emt 00:04:32]} Qa5 {[%clk 00:31:56]}
{[%emt 00:08:45]} 21. Rxh8 {[%clk 00:34:45]} {[%emt 00:03:01]} Qxa3+ {[%clk
00:31:35]} {[%emt 00:00:52]} 22. Kb1 {[%clk 00:34:57]} {[%emt 00:00:17]} Kxh8
{[%clk 00:27:39]} {[%emt 00:04:26]} 23. Qf2 {[%clk 00:32:46]} {[%emt 00:02:41]}
Bxe6 {[%clk 00:24:42]} {[%emt 00:03:27]} 24. Qh4+ {[%clk 00:32:53]} {[%emt
00:00:24]} Kg7 {[%clk 00:19:17]} {[%emt 00:05:55]} 25. Nxe6+ {[%clk 00:30:25]}
{[%emt 00:02:58]} Kf7 {[%clk 00:19:06]} {[%emt 00:00:41]} 26. Ng5+ {[%clk
00:25:12]} {[%emt 00:05:42]} Ke7 {[%clk 00:19:11]} {[%emt 00:00:25]} 27. Re1+
{[%clk 00:24:25]} {[%emt 00:01:17]} Kd7 {[%clk 00:17:44]} {[%emt 00:01:57]} 28.
Qh7+ {[%clk 00:24:37]} {[%emt 00:00:18]} Kd8 {[%clk 00:16:57]} {[%emt
00:01:17]} 29. Qf7 {[%clk 00:24:04]} {[%emt 00:01:03]} Nc7 {[%clk 00:15:40]}
{[%emt 00:01:48]} 30. Re8+ {[%clk 00:24:03]} {[%emt 00:00:31]} 1-0

[Event "Latvijas 2022. gada jauniešu čempionāta fināls"]
[Site "Riga, Latvia"]
[Date "2022.06.16"]
[Round "8.4"]
[White "Mierins, Emils Janis"]
[Black "Krastins, Arturs"]
[Result "1-0"]
[TimeControl "3600+30"]
[WhiteElo "2016"]
[BlackElo "1506"]

1. e4 {[%clk 01:00:22]} {[%emt 00:00:30]} g6 {[%clk 01:00:55]} {[%emt
00:00:12]} 2. d4 {[%clk 01:00:30]} {[%emt 00:00:21]} Bg7 {[%clk 01:01:20]}
{[%emt 00:00:05]} 3. Nc3 {[%clk 01:00:52]} {[%emt 00:00:08]} d6 {[%clk
01:01:42]} {[%emt 00:00:09]} 4. Nge2 {[%clk 01:00:09]} {[%emt 00:01:12]} a6
{[%clk 01:01:10]} {[%emt 00:01:03]} 5. a4 {[%clk 01:00:30]} {[%emt 00:00:09]}
b6 {[%clk 00:59:47]} {[%emt 00:01:54]} 6. g3 {[%clk 01:00:52]} {[%emt
00:00:06]} Bb7 {[%clk 00:58:23]} {[%emt 00:01:55]} 7. Bg2 {[%clk 01:00:08]}
{[%emt 00:01:13]} Nd7 {[%clk 00:56:24]} {[%emt 00:02:29]} 8. O-O {[%clk
01:00:17]} {[%emt 00:00:19]} e6 {[%clk 00:54:34]} {[%emt 00:02:22]} 9. Be3
{[%clk 01:00:08]} {[%emt 00:00:39]} c5 {[%clk 00:53:25]} {[%emt 00:01:40]} 10.
dxc5 {[%clk 00:56:45]} {[%emt 00:03:51]} dxc5 {[%clk 00:52:39]} {[%emt
00:01:18]} 11. f4 {[%clk 00:55:35]} {[%emt 00:01:39]} Ne7 {[%clk 00:51:12]}
{[%emt 00:01:57]} 12. Qd6 {[%clk 00:54:23]} {[%emt 00:01:43]} Nd5 {[%clk
00:40:12]} {[%emt 00:11:30]} 13. Nxd5 {[%clk 00:51:14]} {[%emt 00:03:38]} exd5
{[%clk 00:40:17]} {[%emt 00:00:25]} 14. Bh3 {[%clk 00:50:29]} {[%emt 00:01:15]}
Bf8 {[%clk 00:40:15]} {[%emt 00:00:32]} 15. Bxd7+ {[%clk 00:50:43]} {[%emt
00:00:16]} Qxd7 {[%clk 00:40:36]} {[%emt 00:00:09]} 16. Qe5+ {[%clk 00:49:54]}
{[%emt 00:01:19]} Qe7 {[%clk 00:40:23]} {[%emt 00:00:42]} 17. Qxh8 {[%clk
00:50:05]} {[%emt 00:00:20]} f6 {[%clk 00:40:35]} {[%emt 00:00:19]} 18. e5
{[%clk 00:47:25]} {[%emt 00:03:10]} O-O-O {[%clk 00:40:05]} {[%emt 00:01:00]}
19. Qxf6 {[%clk 00:47:36]} {[%emt 00:00:18]} Qd7 {[%clk 00:39:51]} {[%emt
00:00:45]} 20. Nd4 {[%clk 00:43:42]} {[%emt 00:04:24]} cxd4 {[%clk 00:36:57]}
{[%emt 00:03:24]} 21. Bxd4 {[%clk 00:44:07]} {[%emt 00:00:05]} Bc6 {[%clk
00:34:55]} {[%emt 00:02:31]} 22. f5 {[%clk 00:40:10]} {[%emt 00:04:27]} Re8
{[%clk 00:34:17]} {[%emt 00:01:08]} 23. fxg6 {[%clk 00:38:56]} {[%emt
00:01:44]} Bc5 {[%clk 00:31:05]} {[%emt 00:03:43]} 24. c3 {[%clk 00:37:42]}
{[%emt 00:01:43]} Bxd4+ {[%clk 00:31:16]} {[%emt 00:00:19]} 25. cxd4 {[%clk
00:38:06]} {[%emt 00:00:07]} hxg6 {[%clk 00:31:32]} {[%emt 00:00:13]} 26. Qxg6
{[%clk 00:38:11]} {[%emt 00:00:25]} Bxa4 {[%clk 00:31:20]} {[%emt 00:00:43]} 27.
Qxb6 {[%clk 00:37:37]} {[%emt 00:01:03]} 1-0

[Event "Latvijas 2022. gada jauniešu čempionāta fināls"]
[Site "Riga, Latvia"]
[Date "2022.06.16"]
[Round "8.6"]
[White "Merzlovs, Timurs"]
[Black "Jeronovics, Toms"]
[Result "0-1"]
[TimeControl "3600+30"]
[WhiteElo "1152"]
[BlackElo "1273"]

1. e4 {[%clk 01:00:58]} {[%emt 00:00:01]} e5 {[%clk 01:00:53]} {[%emt
00:00:07]} 2. Nf3 {[%clk 01:01:25]} {[%emt 00:00:03]} Nc6 {[%clk 01:01:14]}
{[%emt 00:00:09]} 3. d4 {[%clk 01:01:51]} {[%emt 00:00:05]} exd4 {[%clk
01:01:37]} {[%emt 00:00:06]} 4. Nxd4 {[%clk 01:02:17]} {[%emt 00:00:04]} Nf6
{[%clk 01:01:47]} {[%emt 00:00:20]} 5. Nc3 {[%clk 01:03:10]} {[%emt 00:00:06]}
Bb4 {[%clk 01:02:24]} {[%emt 00:00:23]} 6. Nxc6 {[%clk 01:03:26]} {[%emt
00:00:15]} bxc6 {[%clk 01:02:41]} {[%emt 00:00:12]} 7. Bd3 {[%clk 01:03:53]}
{[%emt 00:00:04]} O-O {[%clk 01:02:55]} {[%emt 00:00:15]} 8. O-O {[%clk
01:04:19]} {[%emt 00:00:05]} d5 {[%clk 01:03:16]} {[%emt 00:00:09]} 9. exd5
{[%clk 01:04:45]} {[%emt 00:00:04]} cxd5 {[%clk 01:03:34]} {[%emt 00:00:13]} 10.
Bg5 {[%clk 01:05:06]} {[%emt 00:00:09]} c6 {[%clk 01:03:51]} {[%emt 00:00:12]}
11. Qf3 {[%clk 01:04:53]} {[%emt 00:00:43]} Re8 {[%clk 01:03:51]} {[%emt
00:00:30]} 12. Bxf6 {[%clk 01:04:55]} {[%emt 00:00:28]} Qxf6 {[%clk 01:04:11]}
{[%emt 00:00:10]} 13. Qxf6 {[%clk 01:05:21]} {[%emt 00:00:05]} gxf6 {[%clk
01:04:37]} {[%emt 00:00:03]} 14. Ne2 {[%clk 01:05:38]} {[%emt 00:00:13]} Bd6
{[%clk 01:03:57]} {[%emt 00:01:09]} 15. Ng3 {[%clk 01:05:42]} {[%emt 00:00:27]}
Rb8 {[%clk 00:59:42]} {[%emt 00:04:45]} 16. Rfe1 {[%clk 01:04:03]} {[%emt
00:02:08]} Re5 {[%clk 00:49:31]} {[%emt 00:10:41]} 17. f4 {[%clk 01:03:09]}
{[%emt 00:01:25]} Re6 {[%clk 00:42:06]} {[%emt 00:07:55]} 18. Bf5 {[%clk
01:01:28]} {[%emt 00:02:11]} Rxe1+ {[%clk 00:38:24]} {[%emt 00:04:12]} 19. Rxe1
{[%clk 01:01:48]} {[%emt 00:00:10]} Bxf5 {[%clk 00:38:48]} {[%emt 00:00:05]} 20.
Nxf5 {[%clk 01:02:38]} {[%emt 00:00:10]} Bc5+ {[%clk 00:32:46]} {[%emt
00:07:03]} 21. Kf1 {[%clk 01:02:20]} {[%emt 00:00:47]} Rxb2 {[%clk 00:32:37]}
{[%emt 00:00:40]} 22. Re8+ {[%clk 01:02:18]} {[%emt 00:00:32]} Bf8 {[%clk
00:32:55]} {[%emt 00:00:12]} 23. Ne7+ {[%clk 01:02:21]} {[%emt 00:00:27]} Kg7
{[%clk 00:33:13]} {[%emt 00:00:11]} 24. Nf5+ {[%clk 01:02:32]} {[%emt
00:00:21]} Kg6 {[%clk 00:32:56]} {[%emt 00:00:45]} 25. g4 {[%clk 01:02:14]}
{[%emt 00:00:49]} h5 {[%clk 00:31:22]} {[%emt 00:02:05]} 26. Rxf8 {[%clk
01:02:05]} {[%emt 00:00:39]} hxg4 {[%clk 00:31:30]} {[%emt 00:00:21]} 27. Nd6
{[%clk 01:00:28]} {[%emt 00:02:07]} Rxc2 {[%clk 00:30:35]} {[%emt 00:01:25]} 28.
Rxf7 {[%clk 01:00:39]} {[%emt 00:00:19]} Rxa2 {[%clk 00:30:49]} {[%emt
00:00:16]} 29. f5+ {[%clk 01:01:00]} {[%emt 00:00:10]} Kg5 {[%clk 00:31:03]}
{[%emt 00:00:13]} 30. Kg1 {[%clk 00:59:58]} {[%emt 00:01:32]} Kf4 {[%clk
00:30:26]} {[%emt 00:01:07]} 31. Rxf6 {[%clk 00:59:56]} {[%emt 00:00:33]} Kf3
{[%clk 00:30:38]} {[%emt 00:00:18]} 32. h4 {[%clk 00:58:58]} {[%emt 00:01:29]}
g3 {[%clk 00:30:53]} {[%emt 00:00:15]} 0-1

[Event "Latvijas 2022. gada jauniešu čempionāta fināls"]
[Site "Riga, Latvia"]
[Date "2022.06.16"]
[Round "8.7"]
[White "Gansone, Aiga"]
[Black "Maklakova, Naomi"]
[Result "0-1"]
[TimeControl "3600+30"]
[WhiteElo "1021"]
[BlackElo "1488"]

1. e4 {[%clk 01:00:59]} e5 {[%clk 01:00:42]} {[%emt 00:00:18]} 2. Nf3 {[%clk
01:01:10]} {[%emt 00:00:19]} Nc6 {[%clk 01:01:03]} {[%emt 00:00:09]} 3. Bc4
{[%clk 01:01:34]} {[%emt 00:00:06]} Nf6 {[%clk 01:01:23]} {[%emt 00:00:10]} 4.
d3 {[%clk 01:01:37]} {[%emt 00:00:28]} h6 {[%clk 01:01:35]} {[%emt 00:00:18]} 5.
O-O {[%clk 01:01:13]} {[%emt 00:00:53]} Bc5 {[%clk 01:01:55]} {[%emt 00:00:10]}
6. Nc3 {[%clk 01:00:48]} {[%emt 00:00:55]} d6 {[%clk 01:02:13]} {[%emt
00:00:12]} 7. h3 {[%clk 01:00:40]} {[%emt 00:00:38]} O-O {[%clk 01:02:31]}
{[%emt 00:00:13]} 8. Kh1 {[%clk 00:55:35]} {[%emt 00:05:29]} Be6 {[%clk
01:01:59]} {[%emt 00:01:07]} 9. Bb3 {[%clk 00:54:03]} {[%emt 00:02:03]} Qd7
{[%clk 01:01:56]} {[%emt 00:00:32]} 10. Bxe6 {[%clk 00:52:30]} {[%emt
00:02:02]} fxe6 {[%clk 01:02:19]} {[%emt 00:00:08]} 11. Nh2 {[%clk 00:49:52]}
{[%emt 00:03:06]} Qf7 {[%clk 00:58:20]} {[%emt 00:04:30]} 12. f4 {[%clk
00:46:17]} {[%emt 00:04:05]} Nh5 {[%clk 00:56:53]} {[%emt 00:01:58]} 13. Rf3
{[%clk 00:42:23]} {[%emt 00:04:03]} Nd4 {[%clk 00:54:06]} {[%emt 00:03:39]} 14.
Rf2 {[%clk 00:38:19]} {[%emt 00:04:33]} Nf5 {[%clk 00:46:16]} {[%emt 00:08:21]}
15. Qe1 {[%clk 00:34:41]} {[%emt 00:03:45]} Nfg3+ {[%clk 00:46:08]} {[%emt
00:01:00]} 16. Kg1 {[%clk 00:34:52]} {[%emt 00:00:16]} Bxf2+ {[%clk 00:46:36]}
{[%emt 00:00:05]} 17. Kxf2 {[%clk 00:35:08]} {[%emt 00:00:14]} exf4 {[%clk
00:41:01]} {[%emt 00:06:05]} 18. Nf3 {[%clk 00:34:29]} {[%emt 00:01:02]} e5
{[%clk 00:40:25]} {[%emt 00:01:14]} 19. Nd5 {[%clk 00:32:44]} {[%emt 00:02:12]}
c6 {[%clk 00:40:46]} {[%emt 00:00:11]} 20. Nc3 {[%clk 00:32:15]} {[%emt
00:00:57]} Rae8 {[%clk 00:40:47]} {[%emt 00:00:30]} 21. b3 {[%clk 00:31:25]}
{[%emt 00:01:21]} Nf6 {[%clk 00:36:04]} {[%emt 00:05:13]} 22. Ba3 {[%clk
00:30:11]} {[%emt 00:01:42]} Re6 {[%clk 00:33:45]} {[%emt 00:02:51]} 23. Ne2
{[%clk 00:29:18]} {[%emt 00:01:22]} Rfe8 {[%clk 00:31:44]} {[%emt 00:02:31]} 24.
Nxg3 {[%clk 00:29:14]} {[%emt 00:00:35]} fxg3+ {[%clk 00:32:10]} {[%emt
00:00:04]} 25. Kxg3 {[%clk 00:29:34]} {[%emt 00:00:10]} Qg6+ {[%clk 00:32:30]}
{[%emt 00:00:11]} 26. Kh2 {[%clk 00:29:08]} {[%emt 00:00:55]} d5 {[%clk
00:32:49]} {[%emt 00:00:11]} 27. exd5 {[%clk 00:29:09]} {[%emt 00:00:29]} cxd5
{[%clk 00:33:12]} {[%emt 00:00:07]} 28. Nd2 {[%clk 00:28:46]} {[%emt 00:00:52]}
e4 {[%clk 00:32:27]} {[%emt 00:01:15]} 29. dxe4 {[%clk 00:28:43]} {[%emt
00:00:34]} Nxe4 {[%clk 00:32:48]} {[%emt 00:00:10]} 30. Nxe4 {[%clk 00:26:14]}
{[%emt 00:02:58]} dxe4 {[%clk 00:32:47]} {[%emt 00:00:32]} 31. Bc5 {[%clk
00:25:55]} {[%emt 00:00:48]} e3 {[%clk 00:31:46]} {[%emt 00:01:31]} 0-1

[Event "Latvijas 2022. gada jauniešu čempionāta fināls"]
[Site "Riga, Latvia"]
[Date "2022.06.16"]
[Round "8.9"]
[White "Apine, Emilija"]
[Black "Spirkova, Marija"]
[Result "1/2-1/2"]
[TimeControl "3600+30"]
[WhiteElo "1137"]
[BlackElo "1487"]

1. e4 {[%clk 01:00:57]} {[%emt 00:00:02]} e5 {[%clk 01:00:51]} {[%emt
00:00:10]} 2. Nf3 {[%clk 01:01:21]} {[%emt 00:00:06]} Nc6 {[%clk 01:01:15]}
{[%emt 00:00:06]} 3. Bb5 {[%clk 01:01:45]} {[%emt 00:00:06]} d6 {[%clk
01:01:38]} {[%emt 00:00:07]} 4. d4 {[%clk 01:02:09]} {[%emt 00:00:06]} exd4
{[%clk 01:01:57]} {[%emt 00:00:11]} 5. Nxd4 {[%clk 01:02:33]} {[%emt 00:00:06]}
Bd7 {[%clk 01:02:20]} {[%emt 00:00:07]} 6. Nc3 {[%clk 01:02:53]} {[%emt
00:00:10]} Nf6 {[%clk 01:02:13]} {[%emt 00:00:37]} 7. O-O {[%clk 01:03:03]}
{[%emt 00:00:19]} Be7 {[%clk 01:02:00]} {[%emt 00:00:44]} 8. Nxc6 {[%clk
01:03:06]} {[%emt 00:00:27]} Bxc6 {[%clk 01:01:43]} {[%emt 00:00:47]} 9. Bxc6+
{[%clk 01:03:25]} {[%emt 00:00:11]} bxc6 {[%clk 01:02:07]} {[%emt 00:00:06]} 10.
f4 {[%clk 01:03:11]} {[%emt 00:00:43]} O-O {[%clk 01:00:22]} {[%emt 00:02:16]}
11. Qf3 {[%clk 01:03:10]} {[%emt 00:00:31]} Qd7 {[%clk 00:55:52]} {[%emt
00:04:58]} 12. h3 {[%clk 00:57:04]} {[%emt 00:06:38]} Rad8 {[%clk 00:50:29]}
{[%emt 00:05:49]} 13. b3 {[%clk 00:49:54]} {[%emt 00:07:44]} Ne8 {[%clk
00:45:46]} {[%emt 00:05:12]} 14. Bb2 {[%clk 00:46:41]} {[%emt 00:03:43]} f5
{[%clk 00:42:50]} {[%emt 00:03:26]} 15. Rad1 {[%clk 00:33:23]} {[%emt
00:13:48]} fxe4 {[%clk 00:38:00]} {[%emt 00:05:19]} 16. Nxe4 {[%clk 00:33:23]}
{[%emt 00:00:31]} Nf6 {[%clk 00:35:18]} {[%emt 00:03:13]} 17. Nxf6+ {[%clk
00:26:51]} {[%emt 00:07:02]} Bxf6 {[%clk 00:35:31]} {[%emt 00:00:17]} 18. Bxf6
{[%clk 00:27:11]} {[%emt 00:00:11]} Rxf6 {[%clk 00:35:48]} {[%emt 00:00:12]} 19.
Rd4 {[%clk 00:27:16]} {[%emt 00:00:24]} c5 {[%clk 00:31:29]} {[%emt 00:04:48]}
20. Ra4 {[%clk 00:24:09]} {[%emt 00:03:39]} c6 {[%clk 00:31:28]} {[%emt
00:00:30]} 21. Re4 {[%clk 00:23:10]} {[%emt 00:01:30]} d5 {[%clk 00:28:30]}
{[%emt 00:03:28]} 22. Re5 {[%clk 00:21:14]} {[%emt 00:02:27]} Rdf8 {[%clk
00:26:42]} {[%emt 00:02:16]} 23. Qe3 {[%clk 00:19:59]} {[%emt 00:01:46]} Qd6
{[%clk 00:22:43]} {[%emt 00:04:27]} 24. f5 {[%clk 00:12:04]} {[%emt 00:08:26]}
d4 {[%clk 00:14:15]} {[%emt 00:08:57]} 25. Qe4 {[%clk 00:10:51]} {[%emt
00:01:44]} 1/2-1/2